Workbook

Sheet Cyflwyniad
B1: Pecyn Cymorth Ynni Mwynglawdd_Cyflwyniad
B9: Pwrpas
B10: Bwriad y llyfr gwaith hwn yw rhoi dealltwriaeth elfennol o economeg rhwydweithiau gwres.
B11: Y gynulleidfa darged yw staff awdurdodau lleol nad oes ganddynt lawer o ddealltwriaeth o economeg ynni na rhwydweithiau gwres.
B13: Sgematig Rhwydwaith Gwres
G16: Cwsmer
D23: Mae'r blwch coch hwn yn dynodi rhwydwaith gwres. Mae gwres yn llifo o'i gwmpas. Bydd cwsmeriaid yn tynnu gwres o'r rhwydwaith. Bydd generaduron yn ychwanegu gwres i'r rhwydwaith. | G23: Dosbarthwr | I23: Cyflenwr
G29: Generadur
B33: Mae angen talu'r generadur am gost y gwres y mae'n ei gynhyrchu.
B34: Mae angen talu'r dosbarthwr i dalu costau cyfalaf a gweithredol y rhwydwaith gwres.
B35: Mae'r cyflenwr yn prynu gwres o'r generadur, yn talu'r dosbarthwr am ddefnyddio eu rhwydwaith, ac yn codi tâl ar y cwsmeriaid.
B36: Mae'r marchnadoedd trydan a nwy yn dilyn y model hwn ac yn cael eu gwahanu'n fwriadol fel bod y Cynhyrchydd, y Dosbarthwr a'r Cyflenwyr i gyd yn gwmnïau gwahanol.
B37: Ar gyfer rhwydweithiau gwres, mae un cwmni fel arfer, sef y Energy Services Company (ESCo), sy'n gweithredu fel Cynhyrchydd, Dosbarthwr a Chyflenwr.

Sheet Marchnad Drydan
B1: Pecyn Cymorth Ynni Mwynglawdd_Marchnad Drydan y DU
B3: Marchnad Drydan
B4: Ar fil trydan masnachol, gallwch weld dadansoddiad o daliadau sy'n disgyn yn fras i Gynhyrchu, Dosbarthu a Threthiant.
B5: (Gelwir cynhyrchu hefyd yn Gost "Cyfanwerthu".)
B7: Mae’r tabl isod yn dangos sut y rhagwelir y bydd hyn yn newid erbyn 2025.
B8: Pris Trydan y kWh | C8: 2019 | F8: 2022 | I8: 2025
B9: Cost Cyfanwerthu Trydan | C9: 5 | F9: 30 | I9: 9 | J9: Cynhyrchu yw'r peth mawr sy'n anhysbys - mae'n dibynnu ar brisiau nwy byd-eang.
B10: Cost Dosbarthu Trydan | C10: 2 | F10: 2 | I10: 2 | J10: Mae dosbarthiad yn farchnad a reoleiddir - mae'r costau hyn yn weddol sefydlog dros amser.
B11: Treth Trydan | C11: 5 | F11: 5 | I11: 1 | J11: Mae trethiant yn cael ei yrru gan bolisi. Mae llywodraeth y DU wedi datgan y bydd yn lleihau’r dreth ar drydan erbyn diwedd 2024.
B12: Pris Cyflenwi Trydan | C12: =SUM(C9:C11) -> 12 | F12: =SUM(F9:F11) -> 37 | I12: =SUM(I9:I11) -> 12
B13: Treth/Cyfanswm | C13: =C11/C12 -> 0.4166666667 | F13: =F11/F12 -> 0.1351351351 | I13: =I11/I12 -> 0.08333333333
B29: Yr achos economaidd dros wifren breifat
B30: Mantais allweddol gwifren breifat yw ei fod yn osgoi trethiant yn gyfreithlon.
B31: (Mae hefyd yn osgoi talu costau dosbarthu i drydydd parti, ond bydd angen gosod cysylltiad ffisegol ar wahân a fydd yn costio cymaint, os nad mwy.)
B32: Yn 2019, roedd y fantais o osgoi trethiant dros 40% o'r bil trydan. Erbyn 2025, pan fydd y llywodraeth wedi lleihau trethiant ar drydan, bydd y budd hwn yn llai na 10% o gyfanswm y bil.
B33: (Mae manteision eraill i wifrau preifat fel sicrwydd cyflenwad a sicrwydd pris i'r ddau barti.)
B34: Yr hyn y mae hyn yn ei olygu yw y bydd y dadansoddiad cost a budd o wifren breifat yn dangos achos busnes llawer gwannach o 2025 ymlaen.

Sheet Cost cynhyrchu
B1: Pecyn Cymorth Ynni Mwynglawdd_Cost Cynhyrchu Gwres
B3: Cost Cynhyrchu Gwres
B4: Cost gwres o bwmp gwres | D4: Pan fydd gwres yn cael ei gynhyrchu gan bwmp gwres (boed ffynhonnell aer, ffynhonnell ddaear, ffynhonnell ddŵr neu ynni mwynglawdd), gyrrwr cost y gwres yw'r Pris Cyflenwi Trydan ynghyd â pherfformiad y system.
B5: Cost gwres o Orsaf Bŵer | D5: Pan fydd gwres yn cael ei gynhyrchu gan Orsaf Bŵer (boed yn Ynni o Wastraff neu fiomas), y gost sy’n gyrru cost gwres yw’r Gost Cyfanwerthu Trydan.
B6: Pris Trydan y kWh | C6: 2025
B7: Cost Cyfanwerthu Trydan | C7: =+'Marchnad Drydan'!I9 -> 9 | D7: --> yn gyrru cost gwres o orsaf ynni
B8: Cost Dosbarthu Trydan | C8: =+'Marchnad Drydan'!I10 -> 2
B9: Treth Trydan | C9: =+'Marchnad Drydan'!I11 -> 1
B10: Pris Cyflenwi Trydan | C10: =SUM(C7:C9) -> 12 | D10: --> yn gyrru cost gwres o bwmp gwres
D12: I gael gwres o orsaf bŵer (boed yn Ynni o Wastraff neu fiomas), mae angen i chi ddargyfeirio gwres oddi wrth y tyrbinau. Mae hyn yn golygu bod llai o drydan yn gallu cael ei gynhyrchu a'i werthu. Gelwir y gymhareb gwres:trydan yn "z-factor" ac fel arfer mae tua 6:1. Felly i gynhyrchu 6 uned o wres, byddem yn colli allan ar 1 uned o drydan. Gyda chost cyfanwerthu trydan o 9c/kWh, byddai hyn yn golygu cost cynhyrchu gwres o 9c/6=1.5c/kWh.
D14: Yn dibynnu ar y pwmp gwres a ddefnyddir, tymheredd y dŵr mwynglawdd, tymheredd y rhwydwaith a dyfnder y pwll; gallai pwmp gwres ynni mwynglawdd fod ag effeithlonrwydd cyfartalog (COP) o rhwng 2 a 4. Yn COP2 byddai cost gwres yn 12c/2=6c/kWh; yn COP4 byddai cost gwres yn 12c/4=3c/kWh. Gall y Coal Authority hefyd godi ffi am fynediad i'r pyllau glo.
D16: Mae'r ffigurau hyn yn dangos costau uniongyrchol cynhyrchu gwres. Bydd rhai costau anuniongyrchol, megis cynnal a chadw offer a chostau gweinyddol. Hefyd, efallai y bydd y gwerthwr gwres yn dymuno gwneud elw arno. Bydd y pris y bydd yr Energy Service Company yn ei dalu am y gwres felly ychydig yn uwch na'r ffigurau a nodir yma.

Sheet Sheet1 (hidden)
B1: W=J/s
D2: W=K.kg/m3.J/kg/K.m3/s
D3: W=kgm2/s3
B4: P | C4: =C5*C6*C7*C8/C9 -> 75461.53846 | D4: W
B5: h | C5: 100 | D5: m
B6: r | C6: 1000 | D6: kg/m3
B7: g | C7: 9.81 | D7: m/s2
B8: Q | C8: 0.05 | D8: m3/s
B9: sig | C9: 0.65
B11: H | C11: =+(C13*C12*C6*C8)/(1-1/C14) -> 1120000 | D11: W
B12: c | C12: 4200 | D12: J/kg/K
B13: dT | C13: 4 | D13: K
B14: COP | C14: 4

Sheet Cost dosbarthu
B1: Pecyn Cymorth Ynni Mwynglawdd_Cost Gwres
B3: Cost Dosbarthu
B5: Bydd rhwydweithiau gwres yn costio rhwng £1000 a £2000 y metr i'w gosod.
B6: Mewn ardaloedd o ddwysedd isel bydd yn rhatach gosod pympiau gwres unigol na rhwydwaith gwres.
B7: Bydd teras deulawr yn costio dros £10,000 y tŷ a bron yn bendant bydd yn fwy addas ar gyfer pympiau gwres unigol.
B8: Bydd tŷ teras 4 llawr neu uwch yn dal i gostio dros £10,000 y tŷ, ond gyda’r galw uwch am wres gallai wneud economeg y rhwydwaith gwres yn ymarferol.
B9: Mae gan ganol dinasoedd, canolfannau diwydiannol, a champysau penodol (prifysgol/GIG) ofynion gwres digon uchel i warantu rhwydwaith gwres.

Sheet Llif Arian Rhwydwaith Gwres
B1: Llif Arian Rhwydwaith Gwres | J1: Blwyddyn 0 | K1: Blwyddyn 1 | L1: Blwyddyn 2 | M1: Blwyddyn 3 | N1: Blwyddyn 4 | O1: Blwyddyn 5 | P1: Blwyddyn 6 | Q1: Blwyddyn 7 | R1: Blwyddyn 8 | S1: Blwyddyn 9 | T1: Blwyddyn 10 | U1: Blwyddyn 11 | V1: Blwyddyn 12 | W1: Blwyddyn 13 | X1: Blwyddyn 14 | Y1: Blwyddyn 15 | Z1: Blwyddyn 16 | AA1: Blwyddyn 17 | AB1: Blwyddyn 18 | AC1: Blwyddyn 19 | AD1: Blwyddyn 20
B3: Cyflwyniad
B4: Bwriad hyn yw addysgu am yr agweddau ar fodel rhwydwaith gwres, gan gyfeirio'n benodol at Ynni Mwynglawdd.
B5: Nid yw'n fodel gweithredol a dylid ei ddefnyddio at ddibenion addysgol yn unig.
B6: Rydyn ni'n mynd i ddefnyddio testun glas i ddynodi mewnbynnau ar y model hwn. Bydd fformiwlâu mewn testun du.
B7: Fel arfer byddem yn gosod yr holl fewnbynnau ar eu tab eu hunain. Yma, rydyn ni'n gadael y mewnbynnau ar y dudalen hon i'w gwneud hi'n haws i'r darllenydd ddilyn y stori.
B8: Mae llinellau'r model wedi'u lliwio mewn llwyd.
B10: Llifau egni
B11: Galw am ynni
B12: Y cam cyntaf yw edrych ar y galw am ynni.
B14: Dros amser, bydd prosiect rhwydwaith gwres yn adeiladu:
B15: Mae tŷ cyffredin yn y DU yn defnyddio 12,000kWh o nwy y flwyddyn. Ond dim ond 80% effeithlon yw'r boeler nwy arferol, felly mae hynny'n cyfateb i alw am wres o 10,000kWh y flwyddyn.
B16: Niferoedd tai ôl-osod domestig | I16: # | K16: 100 | L16: 200 | M16: 300 | N16: 400 | O16: 500 | P16: =+O16 -> 500 | Q16: =+P16 -> 500 | R16: 500 | S16: 500 | T16: 500 | U16: 500 | V16: 500 | W16: 500 | X16: 500 | Y16: 500 | Z16: 500 | AA16: 500 | AB16: 500 | AC16: 500 | AD16: 500
B17: Galw gwres ôl-osod domestig | C17: 10000 | D17: kWh/blwyddyn fesul tŷ | I17: kWh/blwyddyn | K17: =+$C$17*K16 -> 1000000 | L17: 2000000 | M17: 3000000 | N17: 4000000 | O17: 5000000 | P17: 5000000 | Q17: 5000000 | R17: 5000000 | S17: 5000000 | T17: 5000000 | U17: 5000000 | V17: 5000000 | W17: 5000000 | X17: 5000000 | Y17: 5000000 | Z17: 5000000 | AA17: 5000000 | AB17: 5000000 | AC17: 5000000 | AD17: 5000000
B18: Fel arfer bydd angen llai na 5000kWh y flwyddyn o wres ar adeiladau newydd.
B19: Niferoedd tai newydd domestig | I19: # | K19: 100 | L19: 200 | M19: 300 | N19: 400 | O19: 500 | P19: =+O19 -> 500 | Q19: =+P19 -> 500 | R19: =+Q19 -> 500 | S19: =+R19 -> 500 | T19: =+S19 -> 500 | U19: =+T19 -> 500 | V19: =+U19 -> 500 | W19: =+V19 -> 500 | X19: =+W19 -> 500 | Y19: =+X19 -> 500 | Z19: =+Y19 -> 500 | AA19: =+Z19 -> 500 | AB19: =+AA19 -> 500 | AC19: =+AB19 -> 500 | AD19: =+AC19 -> 500
B20: Galw am wres cartrefi newydd | C20: 4000 | D20: kWh/blwyddyn fesul tŷ | I20: kWh/blwyddyn | K20: =+$C$20*K19 -> 400000 | L20: 800000 | M20: 1200000 | N20: 1600000 | O20: 2000000 | P20: 2000000 | Q20: 2000000 | R20: 2000000 | S20: 2000000 | T20: 2000000 | U20: 2000000 | V20: 2000000 | W20: 2000000 | X20: 2000000 | Y20: 2000000 | Z20: 2000000 | AA20: 2000000 | AB20: 2000000 | AC20: 2000000 | AD20: 2000000
B21: Bydd model Techno-Economig cywir yn cynnwys dadansoddiad manylach o'r holl fathau o eiddo.
B23: Mae gan eiddo masnachol fwy o amrywiaeth ac mae'n gyffredin edrych ar eu harwynebedd llawr a maint eu cysylltiad gwres (wedi'i fesur mewn kW) yn ogystal â'r amcangyfrif blynyddol o ddefnydd.
B24: Ysgol | C24: 150000 | D24: kWh/blwyddyn y | F24: 200 | G24: Cysylltiad kW | I24: # | K24: 0 | L24: 1 | M24: =+L24 -> 1 | N24: =+M24 -> 1 | O24: 1 | P24: 1 | Q24: 1 | R24: 1 | S24: 1 | T24: 1 | U24: 1 | V24: 1 | W24: 1 | X24: 1 | Y24: 1 | Z24: 1 | AA24: 1 | AB24: 1 | AC24: 1 | AD24: 1
B25: Swyddfeydd | C25: 50000 | D25: kWh/blwyddyn y | F25: 60 | G25: Cysylltiad kW | I25: # | K25: 0 | L25: 1 | M25: 1 | N25: 2 | O25: 2 | P25: 3 | Q25: =+P25 -> 3 | R25: =+Q25 -> 3 | S25: 3 | T25: 3 | U25: 3 | V25: 3 | W25: 3 | X25: 3 | Y25: 3 | Z25: 3 | AA25: 3 | AB25: 3 | AC25: 3 | AD25: 3
B27: Maint cysylltiad masnachol | I27: kW | K27: =+SUMPRODUCT($F$24:$F$25,K24:K25) -> 0 | L27: 260 | M27: 260 | N27: 320 | O27: 320 | P27: 380 | Q27: 380 | R27: 380 | S27: 380 | T27: 380 | U27: 380 | V27: 380 | W27: 380 | X27: 380 | Y27: 380 | Z27: 380 | AA27: 380 | AB27: 380 | AC27: 380 | AD27: 380
B28: Galw gwres masnachol | I28: kWh/blwyddyn | K28: =+SUMPRODUCT($C$24:$C$25,K24:K25) -> 0 | L28: 200000 | M28: 200000 | N28: 250000 | O28: 250000 | P28: 300000 | Q28: 300000 | R28: 300000 | S28: 300000 | T28: 300000 | U28: 300000 | V28: 300000 | W28: 300000 | X28: 300000 | Y28: 300000 | Z28: 300000 | AA28: 300000 | AB28: 300000 | AC28: 300000 | AD28: 300000
B30: Rydym bellach yn gwybod cyfanswm y galw am wres y mae'n rhaid ei gyflenwi bob blwyddyn i eiddo cwsmeriaid. | I30: kWh/blwyddyn | K30: =+K17+K28+K20 -> 1400000 | L30: 3000000 | M30: 4400000 | N30: 5850000 | O30: 7250000 | P30: 7300000 | Q30: 7300000 | R30: 7300000 | S30: 7300000 | T30: 7300000 | U30: 7300000 | V30: 7300000 | W30: 7300000 | X30: 7300000 | Y30: 7300000 | Z30: 7300000 | AA30: 7300000 | AB30: 7300000 | AC30: 7300000 | AD30: 7300000
B31: Mae'r rhwydwaith gwres ei hun yn gyfres o bibellau wedi'u claddu yn y ddaear. Byddant yn colli gwres i'r ddaear.
B32: Colli gwres | C32: 0.2 | D32: o alw am wres | I32: kWh/blwyddyn | K32: =+$C$32*K30 -> 280000 | L32: 600000 | M32: 880000 | N32: 1170000 | O32: 1450000 | P32: 1460000 | Q32: 1460000 | R32: 1460000 | S32: 1460000 | T32: 1460000 | U32: 1460000 | V32: 1460000 | W32: 1460000 | X32: 1460000 | Y32: 1460000 | Z32: 1460000 | AA32: 1460000 | AB32: 1460000 | AC32: 1460000 | AD32: 1460000
B33: Mae hyn wedyn yn dweud wrthym beth yw cyfanswm y gwres y mae'n rhaid ei gyflenwi i fodloni'r galw hwnnw | I33: kWh/blwyddyn | K33: =+K30+K32 -> 1680000 | L33: 3600000 | M33: 5280000 | N33: 7020000 | O33: 8700000 | P33: 8760000 | Q33: 8760000 | R33: 8760000 | S33: 8760000 | T33: 8760000 | U33: 8760000 | V33: 8760000 | W33: 8760000 | X33: 8760000 | Y33: 8760000 | Z33: 8760000 | AA33: 8760000 | AB33: 8760000 | AC33: 8760000 | AD33: 8760000
B35: Sylwch: byddai'r enghraifft yr wyf wedi'i llunio yn gwneud rhwydwaith gwres bach iawn - dim ond 1000 o gartrefi, ysgol ac ychydig o swyddfeydd.
B36: Mae'n annhebygol y byddai prosiect ynni mwynglawdd yn gweithio ar y raddfa fach hon oherwydd y gost cyfalaf uchel.
B38: Cyflenwad ynni
B39: Nawr ein bod yn gwybod faint o ynni gwres y mae angen inni ei gyflenwi, rydym yn edrych ar o ble y daw’r gwres hwnnw.
B40: Bydd rhwydwaith gwres carbon isel yn cael y rhan fwyaf o'i wres yn dod o bympiau gwres, gorsafoedd pŵer, neu wres gwastraff diwydiannol.
B41: Yna fel arfer bydd ganddynt foeleri nwy ar gyfer cwrdd â’r llwythi brig uchaf (h.y. 7yb pan fydd pawb yn gwresogi eu cartrefi ac yn cael cawod ar yr un pryd) ac fel cyflenwad wrth gefn.
B42: Fodd bynnag, bydd y boeleri nwy yn dod i ben yn raddol yn y pen draw, wrth i ni symud tuag at sero net.
B43: At ddibenion addysgol, byddwn yn cymryd mai'r ynni mwynglawdd yw'r brif ffynhonnell gwres, a bod yr holl wres ychwanegol yn cael ei brynu i mewn (o orsaf Ynni o Wastraff cyfagos, dyweder).
B45: Gadewch i ni dybio bod gan ein mwynglawdd allbwn thermol uchaf o | G45: 400 | H45: kW
B46: Felly os yw'n gweithio'n gyson am yr holl 8760 awr o'r flwyddyn byddai'n cynhyrchu | G46: =8760*G45 -> 3504000 | H46: kWh/blwyddyn o wres
B47: Ond am 10% o'r amser nid yw'n gweithio oherwydd cynnal a chadw, felly gall gynhyrchu, mewn gwirionedd, dim ond hyd at | G47: =+G46*90% -> 3153600 | H47: kWh/blwyddyn o wres
B49: Bydd y model techno-economaidd yn dod yn fanwl ar y pwynt hwn, gan edrych ar ddata fesul awr, galwadau ar yr oriau brig, tymheredd, storfeydd thermol, cyfraddau llif a mwy.
B50: Symudwn heibio i hynny yma ac yn cymryd yn ganiataol y gall gwres y pwll gwrdd o leiaf | G50: 0.7 | H50: o alw am wres
B52: Felly nawr rydyn ni'n gwybod o ble mae'n gwres yn dod:
B53: Galw am wres | I53: kWh/blwyddyn | K53: =+K33 -> 1680000 | L53: 3600000 | M53: 5280000 | N53: 7020000 | O53: 8700000 | P53: 8760000 | Q53: 8760000 | R53: 8760000 | S53: 8760000 | T53: 8760000 | U53: 8760000 | V53: 8760000 | W53: 8760000 | X53: 8760000 | Y53: 8760000 | Z53: 8760000 | AA53: 8760000 | AB53: 8760000 | AC53: 8760000 | AD53: 8760000
B54: Cyflenwad gwres o fwynglawdd | I54: kWh/blwyddyn | K54: =+MIN($G$47,$G$50*K53) -> 1176000 | L54: 2520000 | M54: 3153600 | N54: 3153600 | O54: 3153600 | P54: 3153600 | Q54: 3153600 | R54: 3153600 | S54: 3153600 | T54: 3153600 | U54: 3153600 | V54: 3153600 | W54: 3153600 | X54: 3153600 | Y54: 3153600 | Z54: 3153600 | AA54: 3153600 | AB54: 3153600 | AC54: 3153600 | AD54: 3153600
B55: Cyflenwad gwres o orsaf Ynni o Wastraff gerllaw | I55: kWh/blwyddyn | K55: =+K53-K54 -> 504000 | L55: 1080000 | M55: 2126400 | N55: 3866400 | O55: 5546400 | P55: 5606400 | Q55: 5606400 | R55: 5606400 | S55: 5606400 | T55: 5606400 | U55: 5606400 | V55: 5606400 | W55: 5606400 | X55: 5606400 | Y55: 5606400 | Z55: 5606400 | AA55: 5606400 | AB55: 5606400 | AC55: 5606400 | AD55: 5606400
B57: Nawr mae angen i ni feddwl am yr holl ofynion trydan yn ein rhwydwaith gwres.
B58: Mae angen trydan arnom ar gyfer (a) y pwmp gwres, (b) i bwmpio hylif o amgylch twll turio'r mwynglawdd, (c) i bwmpio dŵr o amgylch y rhwydwaith gwres.
B59: Po ddyfnaf yw'r twll turio, y mwyaf o bwmpio sydd ei angen. Yn ddelfrydol, rydych chi eisiau dŵr cynnes mor agos at yr arwyneb â phosib.
B61: Bydd effeithlonrwydd y pwmp gwres yn dibynnu ar wahanol ffactorau, yn enwedig tymheredd y rhwydwaith gwres, tymheredd y ffynhonnell wres, cyfaint arwyneb y cyfnewidydd gwres, a'r nwy oerydd a ddefnyddir.
B62: Yn y gaeaf, pan fydd angen y rhan fwyaf o wres, mae tymheredd yr aer ar gyfartaledd fel arfer yn is na 5°C. Mae hyn yn lleihau effeithlonrwydd blynyddol cyfartalog pwmp gwres ffynhonnell aer.
B63: Bydd tymheredd dŵr ffynhonnell mwynglawdd rhwng 10°C a 20°C, hyd yn oed yn nyfnder y gaeaf. Bydd hynny'n rhoi effeithlonrwydd blynyddol uchel i bympiau gwres ffynhonnell mwynglawdd.
B65: Byddwn yn tybio yma cyfernod perfformiad tymhorol (SCOP) ar gyfer y pwmp gwres ffynhonnell mwynglawdd
B66: Effeithlonrwydd blynyddol pwmp gwres ffynhonnell mwynglawdd | F66: 4 | G66: SCOP
B67: Cyflenwad gwres o fwynglawdd | I67: kWh/blwyddyn | K67: =+K54 -> 1176000 | L67: 2520000 | M67: 3153600 | N67: 3153600 | O67: 3153600 | P67: 3153600 | Q67: 3153600 | R67: 3153600 | S67: 3153600 | T67: 3153600 | U67: 3153600 | V67: 3153600 | W67: 3153600 | X67: 3153600 | Y67: 3153600 | Z67: 3153600 | AA67: 3153600 | AB67: 3153600 | AC67: 3153600 | AD67: 3153600
B68: Trydan sydd ei angen ar gyfer y pwmp gwres | I68: kWh/blwyddyn | K68: =+K67/$F$66 -> 294000 | L68: 630000 | M68: 788400 | N68: 788400 | O68: 788400 | P68: 788400 | Q68: 788400 | R68: 788400 | S68: 788400 | T68: 788400 | U68: 788400 | V68: 788400 | W68: 788400 | X68: 788400 | Y68: 788400 | Z68: 788400 | AA68: 788400 | AB68: 788400 | AC68: 788400 | AD68: 788400
B70: Mae'r trydan ar gyfer pwmpio hylif o amgylch y twll turio yn dibynnu'n bennaf ar ddyfnder y twll turio.
B71: Ar sero dyfnder, ni fydd angen unrhyw drydan, ar 200m, mae'r system gyffredinol SCOP yn debygol o ostwng o 4 i lawr i 2.5, gan niweidio economeg y prosiect yn ddifrifol.
B72: Fodd bynnag, mae tyllau turio dyfnach yn aml yn golygu tymereddau cynhesach, felly mae cydbwysedd i'w gael i wneud y mwyaf o effeithlonrwydd o un pen i'r llall.
B74: Dyfnder y twll turio | F74: 50 | G74: m
B75: Trydan sydd ei angen ar gyfer pwmpio o amgylch y twll turio | F75: =+F74/1000 -> 0.05 | G75: o'r gwres a gyflwynir | I75: kWh/blwyddyn | K75: =+K67*$F$75 -> 58800 | L75: 126000 | M75: 157680 | N75: 157680 | O75: 157680 | P75: 157680 | Q75: 157680 | R75: 157680 | S75: 157680 | T75: 157680 | U75: 157680 | V75: 157680 | W75: 157680 | X75: 157680 | Y75: 157680 | Z75: 157680 | AA75: 157680 | AB75: 157680 | AC75: 157680 | AD75: 157680
B77: Angen trydan ar gyfer pympiau gwres ynghyd â phwmpio tyllau turio | I77: kWh/blwyddyn | K77: =+K68+K75 -> 352800 | L77: 756000 | M77: 946080 | N77: 946080 | O77: 946080 | P77: 946080 | Q77: 946080 | R77: 946080 | S77: 946080 | T77: 946080 | U77: 946080 | V77: 946080 | W77: 946080 | X77: 946080 | Y77: 946080 | Z77: 946080 | AA77: 946080 | AB77: 946080 | AC77: 946080 | AD77: 946080
B78: SCOP gan gynnwys trydan ar gyfer pwmpio twll turio | I78: SCOP # | K78: =+K67/K77 -> 3.333333333 | L78: 3.333333333 | M78: 3.333333333 | N78: 3.333333333 | O78: 3.333333333 | P78: 3.333333333 | Q78: 3.333333333 | R78: 3.333333333 | S78: 3.333333333 | T78: 3.333333333 | U78: 3.333333333 | V78: 3.333333333 | W78: 3.333333333 | X78: 3.333333333 | Y78: 3.333333333 | Z78: 3.333333333 | AA78: 3.333333333 | AB78: 3.333333333 | AC78: 3.333333333 | AD78: 3.333333333
B80: Byddwn yn defnyddio fformiwla rheol gyffredinol arall i amcangyfrif y trydan sydd ei angen ar gyfer pwmpio o amgylch y rhwydwaith gwres
B81: Trydan sydd ei angen ar gyfer pwmpio o amgylch y rhwydwaith gwres | F81: 0.02 | G81: o'r gwres a gyflwynir | I81: kWh/blwyddyn | K81: =+K53*$F$81 -> 33600 | L81: =+L53*$F$81 -> 72000 | M81: 105600 | N81: 140400 | O81: 174000 | P81: 175200 | Q81: 175200 | R81: 175200 | S81: 175200 | T81: 175200 | U81: 175200 | V81: 175200 | W81: 175200 | X81: 175200 | Y81: 175200 | Z81: 175200 | AA81: 175200 | AB81: 175200 | AC81: 175200 | AD81: 175200
B83: Gallwn ddod â'r tri gofyniad trydan hyn at ei gilydd:
B84: Trydan sydd ei angen ar gyfer y pwmp gwres | I84: kWh/blwyddyn | K84: =+K68 -> 294000 | L84: =+L68 -> 630000 | M84: 788400 | N84: 788400 | O84: 788400 | P84: 788400 | Q84: 788400 | R84: 788400 | S84: 788400 | T84: 788400 | U84: 788400 | V84: 788400 | W84: 788400 | X84: 788400 | Y84: 788400 | Z84: 788400 | AA84: 788400 | AB84: 788400 | AC84: 788400 | AD84: 788400
B85: Trydan sydd ei angen ar gyfer pwmpio o amgylch y twll turio | I85: kWh/blwyddyn | K85: =+K75 -> 58800 | L85: =+L75 -> 126000 | M85: 157680 | N85: 157680 | O85: 157680 | P85: 157680 | Q85: 157680 | R85: 157680 | S85: 157680 | T85: 157680 | U85: 157680 | V85: 157680 | W85: 157680 | X85: 157680 | Y85: 157680 | Z85: 157680 | AA85: 157680 | AB85: 157680 | AC85: 157680 | AD85: 157680
B86: Trydan sydd ei angen ar gyfer pwmpio o amgylch y rhwydwaith gwres | I86: kWh/blwyddyn | K86: =+K81 -> 33600 | L86: =+L81 -> 72000 | M86: 105600 | N86: 140400 | O86: 174000 | P86: 175200 | Q86: 175200 | R86: 175200 | S86: 175200 | T86: 175200 | U86: 175200 | V86: 175200 | W86: 175200 | X86: 175200 | Y86: 175200 | Z86: 175200 | AA86: 175200 | AB86: 175200 | AC86: 175200 | AD86: 175200
B87: Cyfanswm y trydan sydd ei angen | I87: kWh/blwyddyn | K87: =SUM(K84:K86) -> 386400 | L87: =SUM(L84:L86) -> 828000 | M87: 1051680 | N87: 1086480 | O87: 1120080 | P87: 1121280 | Q87: 1121280 | R87: 1121280 | S87: 1121280 | T87: 1121280 | U87: 1121280 | V87: 1121280 | W87: 1121280 | X87: 1121280 | Y87: 1121280 | Z87: 1121280 | AA87: 1121280 | AB87: 1121280 | AC87: 1121280 | AD87: 1121280
B89: Rydym bellach yn gwybod cyfanswm ein ffynonellau ynni i fodloni’r galw am wres:
B90: Cyfanswm y trydan sydd ei angen | I90: kWh/blwyddyn | K90: =+K87 -> 386400 | L90: =+L87 -> 828000 | M90: 1051680 | N90: 1086480 | O90: 1120080 | P90: 1121280 | Q90: 1121280 | R90: 1121280 | S90: 1121280 | T90: 1121280 | U90: 1121280 | V90: 1121280 | W90: 1121280 | X90: 1121280 | Y90: 1121280 | Z90: 1121280 | AA90: 1121280 | AB90: 1121280 | AC90: 1121280 | AD90: 1121280
B91: Cyflenwad gwres o orsaf Ynni o Wastraff gerllaw | I91: kWh/blwyddyn | K91: =+K55 -> 504000 | L91: =+L55 -> 1080000 | M91: 2126400 | N91: 3866400 | O91: 5546400 | P91: 5606400 | Q91: 5606400 | R91: 5606400 | S91: 5606400 | T91: 5606400 | U91: 5606400 | V91: 5606400 | W91: 5606400 | X91: 5606400 | Y91: 5606400 | Z91: 5606400 | AA91: 5606400 | AB91: 5606400 | AC91: 5606400 | AD91: 5606400
B93: Rydym wedi defnyddio lefel flynyddol o fanylion yn y model hwn, sy'n helpu i hysbysu ac addysgu. Gallai model manwl edrych ar fanylion dyddiol neu fesul awr.
B94: Gall storfa thermol fawr leihau'r gofynion brig yn sylweddol dros gyfnod o 24 awr, gan wneud model dyddiol yn un sy'n rhesymol ddigonol.
B95: Mae mwyafrif helaeth y modelau yn edrych ar fanylion yr awr a dylent ystyried lle storio.
B97: Llif arian
B98: Costau Ynni
B99: Yn gyntaf byddwn yn edrych ar Gyfanswm Trydan Sydd ei Angen.
B100: Gallai hynny ddod o solar ar y safle, gwynt neu gynhyrchydd trydan arall gerllaw.
B101: Neu gellid ei brynu naill ai’n breifat drwy Gytundeb Prynu Pŵer, neu drwy’r cyflenwad trydan rheolaidd.
B102: Gallai hyd yn oed fod yn gyfuniad o'r holl ffynonellau trydan uchod.
B103: Gallai'r tariff amrywio yn ôl amser o'r dydd, neu efallai na fydd. Gallai fod yn gysylltiedig â marchnadoedd cyfanwerthu, neu beidio.
B104: Bydd model manwl fesul awr yn cynnwys proffiliau ar gyfer unrhyw fath o genhedlaeth â chwmpas (e.e. solar PV) a phrisiau troshaen o amser o’r dydd.
B105: Yma, byddwn yn tybio bod yr holl drydan yn cael ei fewnforio gan gyflenwr ar gyfradd safonol.
B106: Tariff cyflenwad trydan | G106: =+'Marchnad Drydan'!I12 -> 12 | H106: y kWh | I106: £ | K106: =+$G$106/100*K90 -> 46368 | L106: =+$G$106/100*L90 -> 99360 | M106: 126201.6 | N106: 130377.6 | O106: 134409.6 | P106: 134553.6 | Q106: 134553.6 | R106: 134553.6 | S106: 134553.6 | T106: 134553.6 | U106: 134553.6 | V106: 134553.6 | W106: 134553.6 | X106: 134553.6 | Y106: 134553.6 | Z106: 134553.6 | AA106: 134553.6 | AB106: 134553.6 | AC106: 134553.6 | AD106: 134553.6
B108: Nawr rydym yn edrych ar y cyflenwad gwres ychwanegol. Tybiwn fod hyn yn dod o orsaf Ynni o Wastraff gerllaw.
B109: Tybir mai eu cost uniongyrchol o wres yw trydan cyfanwerthol/"z-factor" | G109: 6 | H109: z-factor
B110: Cyflenwad gwres o orsaf Ynni o Wastraff gerllaw | G110: =+'Marchnad Drydan'!I9/G109 -> 1.5 | H110: y kWh | I110: £ | K110: =+$G$110/100*K91 -> 7560 | L110: 16200 | M110: 31896 | N110: 57996 | O110: 83196 | P110: 84096 | Q110: 84096 | R110: 84096 | S110: 84096 | T110: 84096 | U110: 84096 | V110: 84096 | W110: 84096 | X110: 84096 | Y110: 84096 | Z110: 84096 | AA110: 84096 | AB110: 84096 | AC110: 84096 | AD110: 84096
B113: Refeniw
B114: Bydd gan yr unedau domestig bris amrywiol am bob kWh o wres ynghyd â thâl sefydlog fesul eiddo. Gall y tâl sefydlog amrywio yn dibynnu ar ba mor fawr yw'r eiddo.
B115: Bydd gan yr unedau masnachol newidyn a thâl sefydlog yn dibynnu ar ba mor fawr yw eu cysylltiad gwres (a nodir yn aml mewn £/kW/blwyddyn).
B116: Mae angen gosod y tariffau hyn yn ddigon uchel i dalu costau+elw, ond eto'n ddigon isel i fod yn rhatach na ffynonellau gwres eraill.
B117: Yn draddodiadol, nwy yw'r ffynhonnell wres amgen, sy'n anodd oherwydd ei gost isel. Mae'r ffynhonnell "gwrthffeithiol" a dderbynnir bellach yn dod yn bwmp gwres ffynhonnell aer.
B118: Tâl Sefydlog Domestig | G118: 400 | H118: £/tŷ/blwyddyn
B119: Tâl Amrywiol Domestig | G119: 8 | H119: y kWh
B120: Tâl Sefydlog Masnachol | G120: 20 | H120: £/blwyddyn/kW
B121: Tâl amrywiadwy masnachol | G121: 8 | H121: y kWh
B123: Niferoedd tai ôl-osod domestig | K123: =+K16 -> 100 | L123: 200 | M123: 300 | N123: 400 | O123: 500 | P123: 500 | Q123: 500 | R123: 500 | S123: 500 | T123: 500 | U123: 500 | V123: 500 | W123: 500 | X123: 500 | Y123: 500 | Z123: 500 | AA123: 500 | AB123: 500 | AC123: 500 | AD123: 500
B124: Niferoedd tai newydd domestig | K124: =+K19 -> 100 | L124: 200 | M124: 300 | N124: 400 | O124: 500 | P124: 500 | Q124: 500 | R124: 500 | S124: 500 | T124: 500 | U124: 500 | V124: 500 | W124: 500 | X124: 500 | Y124: 500 | Z124: 500 | AA124: 500 | AB124: 500 | AC124: 500 | AD124: 500
B125: Rhifau tai domestig | I125: # | K125: =SUM(K123:K124) -> 200 | L125: =SUM(L123:L124) -> 400 | M125: 600 | N125: 800 | O125: 1000 | P125: 1000 | Q125: 1000 | R125: 1000 | S125: 1000 | T125: 1000 | U125: 1000 | V125: 1000 | W125: 1000 | X125: 1000 | Y125: 1000 | Z125: 1000 | AA125: 1000 | AB125: 1000 | AC125: 1000 | AD125: 1000
B126: Galw am wres domestig | I126: kWh/blwyddyn | K126: =+K17+K20 -> 1400000 | L126: 2800000 | M126: 4200000 | N126: 5600000 | O126: 7000000 | P126: 7000000 | Q126: 7000000 | R126: 7000000 | S126: 7000000 | T126: 7000000 | U126: 7000000 | V126: 7000000 | W126: 7000000 | X126: 7000000 | Y126: 7000000 | Z126: 7000000 | AA126: 7000000 | AB126: 7000000 | AC126: 7000000 | AD126: 7000000
B127: Maint cysylltiad masnachol | I127: kW | K127: =+K27 -> 0 | L127: 260 | M127: 260 | N127: 320 | O127: 320 | P127: 380 | Q127: 380 | R127: 380 | S127: 380 | T127: 380 | U127: 380 | V127: 380 | W127: 380 | X127: 380 | Y127: 380 | Z127: 380 | AA127: 380 | AB127: 380 | AC127: 380 | AD127: 380
B128: Galw gwres masnachol | I128: kWh/blwyddyn | K128: =+K28 -> 0 | L128: 200000 | M128: 200000 | N128: 250000 | O128: 250000 | P128: 300000 | Q128: 300000 | R128: 300000 | S128: 300000 | T128: 300000 | U128: 300000 | V128: 300000 | W128: 300000 | X128: 300000 | Y128: 300000 | Z128: 300000 | AA128: 300000 | AB128: 300000 | AC128: 300000 | AD128: 300000
B130: Tâl Sefydlog Domestig | I130: £ | K130: =+$G$118*K125 -> 80000 | L130: 160000 | M130: 240000 | N130: 320000 | O130: 400000 | P130: 400000 | Q130: 400000 | R130: 400000 | S130: 400000 | T130: 400000 | U130: 400000 | V130: 400000 | W130: 400000 | X130: 400000 | Y130: 400000 | Z130: 400000 | AA130: 400000 | AB130: 400000 | AC130: 400000 | AD130: 400000
B131: Tâl Amrywiol Domestig | I131: £ | K131: =+$G$119/100*K126 -> 112000 | L131: 224000 | M131: 336000 | N131: 448000 | O131: 560000 | P131: 560000 | Q131: 560000 | R131: 560000 | S131: 560000 | T131: 560000 | U131: 560000 | V131: 560000 | W131: 560000 | X131: 560000 | Y131: 560000 | Z131: 560000 | AA131: 560000 | AB131: 560000 | AC131: 560000 | AD131: 560000
B132: Tâl Sefydlog Masnachol | I132: £ | K132: =+$G$120*K127 -> 0 | L132: 5200 | M132: 5200 | N132: 6400 | O132: 6400 | P132: 7600 | Q132: 7600 | R132: 7600 | S132: 7600 | T132: 7600 | U132: 7600 | V132: 7600 | W132: 7600 | X132: 7600 | Y132: 7600 | Z132: 7600 | AA132: 7600 | AB132: 7600 | AC132: 7600 | AD132: 7600
B133: Tâl amrywiadwy masnachol | I133: £ | K133: =+$G$121/100*K128 -> 0 | L133: 16000 | M133: 16000 | N133: 20000 | O133: 20000 | P133: 24000 | Q133: 24000 | R133: 24000 | S133: 24000 | T133: 24000 | U133: 24000 | V133: 24000 | W133: 24000 | X133: 24000 | Y133: 24000 | Z133: 24000 | AA133: 24000 | AB133: 24000 | AC133: 24000 | AD133: 24000
B134: Cyfanswm refeniw cwsmeriaid | I134: £ | K134: =SUM(K130:K133) -> 192000 | L134: 405200 | M134: 597200 | N134: 794400 | O134: 986400 | P134: 991600 | Q134: 991600 | R134: 991600 | S134: 991600 | T134: 991600 | U134: 991600 | V134: 991600 | W134: 991600 | X134: 991600 | Y134: 991600 | Z134: 991600 | AA134: 991600 | AB134: 991600 | AC134: 991600 | AD134: 991600
B135: Os oes cynhyrchwyr trydan eraill ar y safle, efallai y bydd rhywfaint o refeniw yma hefyd o werthu trydan. Nid ydym yn cynnwys hynny yn y model hwn.
B137: Refeniw_Ffioedd Cysylltu
B138: Mae'n gyffredin i ddatblygwr dalu ffi cysylltu pan fydd eu hadeilad yn cysylltu â rhwydwaith gwres.
B140: Cysylltiadau ôl-osod domestig yn ystod y flwyddyn | I140: # | K140: =+K123-J123 -> 100 | L140: =+L123-K123 -> 100 | M140: 100 | N140: 100 | O140: 100 | P140: 0 | Q140: 0 | R140: 0 | S140: 0 | T140: 0 | U140: 0 | V140: 0 | W140: 0 | X140: 0 | Y140: 0 | Z140: 0 | AA140: 0 | AB140: 0 | AC140: 0 | AD140: 0
B141: Cysylltiadau cartref newydd yn ystod y flwyddyn | I141: # | K141: =+K124-J124 -> 100 | L141: 100 | M141: 100 | N141: 100 | O141: 100 | P141: 0 | Q141: 0 | R141: 0 | S141: 0 | T141: 0 | U141: 0 | V141: 0 | W141: 0 | X141: 0 | Y141: 0 | Z141: 0 | AA141: 0 | AB141: 0 | AC141: 0 | AD141: 0
B142: Cysylltiadau masnachol yn ystod y flwyddyn | I142: kW | K142: =+K127-J127 -> 0 | L142: =+L127-K127 -> 260 | M142: 0 | N142: 60 | O142: 0 | P142: 60 | Q142: 0 | R142: 0 | S142: 0 | T142: 0 | U142: 0 | V142: 0 | W142: 0 | X142: 0 | Y142: 0 | Z142: 0 | AA142: 0 | AB142: 0 | AC142: 0 | AD142: 0
B144: Ffi cysylltu ôl-osod domestig | G144: 0 | H144: £/tŷ | I144: £ | K144: =+K140*$G144 -> 0 | L144: =+L140*$G144 -> 0 | M144: 0 | N144: 0 | O144: 0 | P144: 0 | Q144: 0 | R144: 0 | S144: 0 | T144: 0 | U144: 0 | V144: 0 | W144: 0 | X144: 0 | Y144: 0 | Z144: 0 | AA144: 0 | AB144: 0 | AC144: 0 | AD144: 0
B145: Ffi cysylltu cartref newydd | G145: 1000 | H145: £/tŷ | I145: £ | K145: =+K141*$G145 -> 100000 | L145: =+L141*$G145 -> 100000 | M145: 100000 | N145: 100000 | O145: 100000 | P145: 0 | Q145: 0 | R145: 0 | S145: 0 | T145: 0 | U145: 0 | V145: 0 | W145: 0 | X145: 0 | Y145: 0 | Z145: 0 | AA145: 0 | AB145: 0 | AC145: 0 | AD145: 0
B146: Ffi cysylltu masnachol | G146: 200 | H146: £/kW | I146: £ | K146: =+K142*$G146 -> 0 | L146: =+L142*$G146 -> 52000 | M146: 0 | N146: 12000 | O146: 0 | P146: 12000 | Q146: 0 | R146: 0 | S146: 0 | T146: 0 | U146: 0 | V146: 0 | W146: 0 | X146: 0 | Y146: 0 | Z146: 0 | AA146: 0 | AB146: 0 | AC146: 0 | AD146: 0
B147: Cyfanswm ffioedd cysylltu | I147: £ | K147: =SUM(K144:K146) -> 100000 | L147: =SUM(L144:L146) -> 152000 | M147: 100000 | N147: 112000 | O147: 100000 | P147: 12000 | Q147: 0 | R147: 0 | S147: 0 | T147: 0 | U147: 0 | V147: 0 | W147: 0 | X147: 0 | Y147: 0 | Z147: 0 | AA147: 0 | AB147: 0 | AC147: 0 | AD147: 0
B149: Mae triniaethau cyfrifyddu gwahanol ar gyfer y ffioedd cysylltu hyn. Weithiau cânt eu trin fel "Rhagdaliadau" a'u lledaenu dros gyfnod y contract. Weithiau cânt eu cydnabod fel incwm yn y flwyddyn y cânt eu derbyn.
B151: Mae Vital yn amcangyfrif £1.2m ar gyfer y dosbarthiad. Amcangyfrifodd Stephen £1.9m ar gyfer Tudor. Yna mae sbardun yn ôl i'r ysgol.
B153: Costau cyfalaf
B154: Gallai prosiect ffynhonnell mwynglawdd gynnwys dau dwll turio echdynnu, ynghyd ag un twll turio ail-chwistrellu. Hefyd bydd angen drilio twll turio archwiliadol. Ac ni fydd pob twll turio yn llwyddiannus.
B155: Y sefyllfa orau fyddai dim tyllau turio; sefyllfa gwael fyddai tua 6.
B156: Gall cost tyllau turio amrywio o £500/m i £2000/m.
B157: Byddai gorfod drilio 3 twll turio i ddyfnder o 200m ar £1000/m felly yn costio £600,000.
B158: Yng Nghaerau, amcangyfrifir mai’r gost ar gyfer tyllau turio oedd £750,000 ar gyfer brig 140kW, sydd dros £5000/kW. Roedd angen £700,000 pellach i gyflenwi gwres i un adeilad.
B160: Mae gofynion gwres uwch yn golygu naill ai tyllau turio lletach (ar gyfer pympiau mwy) neu fwy o dyllau turio.
B161: Yn Heerlen, y gost a adroddwyd oedd £6m ar gyfer system 1.2MW, sef cyfanswm o £5000/kW fel cost gyfannol.
B162: Ni ddylai pwmp gwres ffynhonnell aer mawr fod yn fwy na £750/kW i gyd yn gynwysedig.
B164: Cyfalaf Tybiedig ar gyfer ein prosiect
B165: Pwmp Gwres Ffynhonnell Mwynglawdd | E165: =G45 -> 400 | F165: kW | G165: 10000 | H165: £/kW | I165: £ | J165: =E165*G165 -> 4000000
B166: Gweddill yr orsaf | E166: =3*(Y16+Y19)+Y27 -> 3380 | F166: kW | G166: 750 | H166: £/kW | I166: £ | J166: =E166*G166 -> 2535000
B168: Cysylltiadau ôl-osod domestig yn ystod y flwyddyn | I168: # | K168: =K140 -> 100 | L168: =L140 -> 100 | M168: 100 | N168: 100 | O168: 100 | P168: 0 | Q168: 0 | R168: 0 | S168: 0 | T168: 0 | U168: 0 | V168: 0 | W168: 0 | X168: 0 | Y168: 0 | Z168: 0 | AA168: 0 | AB168: 0 | AC168: 0 | AD168: 0
B169: Cysylltiadau cartref newydd yn ystod y flwyddyn | I169: # | K169: =K141 -> 100 | L169: 100 | M169: 100 | N169: 100 | O169: 100 | P169: 0 | Q169: 0 | R169: 0 | S169: 0 | T169: 0 | U169: 0 | V169: 0 | W169: 0 | X169: 0 | Y169: 0 | Z169: 0 | AA169: 0 | AB169: 0 | AC169: 0 | AD169: 0
B170: Cysylltiadau masnachol yn ystod y flwyddyn | I170: kW | K170: =K142 -> 0 | L170: 260 | M170: 0 | N170: 60 | O170: 0 | P170: 60 | Q170: 0 | R170: 0 | S170: 0 | T170: 0 | U170: 0 | V170: 0 | W170: 0 | X170: 0 | Y170: 0 | Z170: 0 | AA170: 0 | AB170: 0 | AC170: 0 | AD170: 0
B172: Cost Rhwydwaith Gwres ôl-osod domestig | G172: 10000 | H172: £/tŷ | I172: £ | K172: =+K168*$G172 -> 1000000 | L172: =+L168*$G172 -> 1000000 | M172: 1000000 | N172: 1000000 | O172: 1000000 | P172: 0 | Q172: 0 | R172: 0 | S172: 0 | T172: 0 | U172: 0 | V172: 0 | W172: 0 | X172: 0 | Y172: 0 | Z172: 0 | AA172: 0 | AB172: 0 | AC172: 0 | AD172: 0
B173: Cost Rhwydwaith Gwres cartref newydd | G173: 5000 | H173: £/tŷ | I173: £ | K173: =+K169*$G173 -> 500000 | L173: 500000 | M173: 500000 | N173: 500000 | O173: 500000 | P173: 0 | Q173: 0 | R173: 0 | S173: 0 | T173: 0 | U173: 0 | V173: 0 | W173: 0 | X173: 0 | Y173: 0 | Z173: 0 | AA173: 0 | AB173: 0 | AC173: 0 | AD173: 0
B174: Cost Rhwydwaith Gwres masnachol | G174: 1000 | H174: £/kW | I174: £ | K174: 0 | L174: 260000 | M174: 0 | N174: 60000 | O174: 0 | P174: 60000 | Q174: 0 | R174: 0 | S174: 0 | T174: 0 | U174: 0 | V174: 0 | W174: 0 | X174: 0 | Y174: 0 | Z174: 0 | AA174: 0 | AB174: 0 | AC174: 0 | AD174: 0
B175: Cyfanswm cost Rhwydwaith Gwres | I175: £ | K175: =SUM(K172:K174) -> 1500000 | L175: =SUM(L172:L174) -> 1760000 | M175: 1500000 | N175: 1560000 | O175: 1500000 | P175: 60000 | Q175: 0 | R175: 0 | S175: 0 | T175: 0 | U175: 0 | V175: 0 | W175: 0 | X175: 0 | Y175: 0 | Z175: 0 | AA175: 0 | AB175: 0 | AC175: 0 | AD175: 0
B176: Mae cost cyfalaf ôl-osod rhwydweithiau gwres i dai presennol yn debygol o fod yn rhy ddrud, ac eithrio blociau o fflatiau.
B177: Mae eiddo domestig newydd yn economaidd dichonadwy ar gyfer rhwydweithiau gwres, er bod cartrefi ar wahân yn dal yn fwy tebygol o fod â phympiau gwres unigol.
B179: Cyfanswm Cyfalaf | I179: £ | J179: =+J165+J166+J175 -> 6535000 | K179: =+K165+K166+K175 -> 1500000 | L179: 1760000 | M179: 1500000 | N179: 1560000 | O179: 1500000 | P179: 60000 | Q179: 0 | R179: 0 | S179: 0 | T179: 0 | U179: 0 | V179: 0 | W179: 0 | X179: 0 | Y179: 0 | Z179: 0 | AA179: 0 | AB179: 0 | AC179: 0 | AD179: 0
B180: Bydd rhai costau cyfalaf hefyd i amnewid rhannau sy’n torri, ond rydym yn eithrio hynny o’r model symlach hwn.
B182: Costau cynnal a chadw
B183: Gall costau cynnal a chadw ar brosiectau ynni mwynglawdd fod yn uchel iawn. Yn ôl papur diweddar gan WSP, yr amcangyfrif yw 5% i 13% o gost cyfalaf y tyllau turio.
B184: Ar gyfer gweddill yr orsaf, tybiaeth nodweddiadol ar gyfer cynnal a chadw yw 2% o gyfalaf. Ar gyfer y rhwydwaith gwres, dylai'r gwaith cynnal a chadw fod yn llai nag 1%.
B185: Cynnal a Chadw Tyllau Turio | C185: 0.08 | I185: £ | K185: =$C185*SUM($J165:K165) -> 320000 | L185: =$C185*SUM($J165:L165) -> 320000 | M185: =$C185*SUM($J165:M165) -> 320000 | N185: =$C185*SUM($J165:N165) -> 320000 | O185: =$C185*SUM($J165:O165) -> 320000 | P185: =$C185*SUM($J165:P165) -> 320000 | Q185: =$C185*SUM($J165:Q165) -> 320000 | R185: =$C185*SUM($J165:R165) -> 320000 | S185: =$C185*SUM($J165:S165) -> 320000 | T185: =$C185*SUM($J165:T165) -> 320000 | U185: =$C185*SUM($J165:U165) -> 320000 | V185: =$C185*SUM($J165:V165) -> 320000 | W185: =$C185*SUM($J165:W165) -> 320000 | X185: =$C185*SUM($J165:X165) -> 320000 | Y185: =$C185*SUM($J165:Y165) -> 320000 | Z185: =$C185*SUM($J165:Z165) -> 320000 | AA185: =$C185*SUM($J165:AA165) -> 320000 | AB185: =$C185*SUM($J165:AB165) -> 320000 | AC185: =$C185*SUM($J165:AC165) -> 320000 | AD185: =$C185*SUM($J165:AD165) -> 320000
B186: Cynnal a Chadw Gweddill yr Orsaf | C186: 0.02 | I186: £ | K186: =$C186*SUM($J166:K166) -> 50700 | L186: =$C186*SUM($J166:L166) -> 50700 | M186: =$C186*SUM($J166:M166) -> 50700 | N186: =$C186*SUM($J166:N166) -> 50700 | O186: =$C186*SUM($J166:O166) -> 50700 | P186: =$C186*SUM($J166:P166) -> 50700 | Q186: =$C186*SUM($J166:Q166) -> 50700 | R186: =$C186*SUM($J166:R166) -> 50700 | S186: =$C186*SUM($J166:S166) -> 50700 | T186: =$C186*SUM($J166:T166) -> 50700 | U186: =$C186*SUM($J166:U166) -> 50700 | V186: =$C186*SUM($J166:V166) -> 50700 | W186: =$C186*SUM($J166:W166) -> 50700 | X186: =$C186*SUM($J166:X166) -> 50700 | Y186: =$C186*SUM($J166:Y166) -> 50700 | Z186: =$C186*SUM($J166:Z166) -> 50700 | AA186: =$C186*SUM($J166:AA166) -> 50700 | AB186: =$C186*SUM($J166:AB166) -> 50700 | AC186: =$C186*SUM($J166:AC166) -> 50700 | AD186: =$C186*SUM($J166:AD166) -> 50700
B187: Cynnal a Chadw Rhwydwaith Gwres | C187: 0.01 | I187: £ | K187: =$C187*SUM($J175:K175) -> 15000 | L187: =$C187*SUM($J175:L175) -> 32600 | M187: =$C187*SUM($J175:M175) -> 47600 | N187: =$C187*SUM($J175:N175) -> 63200 | O187: =$C187*SUM($J175:O175) -> 78200 | P187: =$C187*SUM($J175:P175) -> 78800 | Q187: =$C187*SUM($J175:Q175) -> 78800 | R187: =$C187*SUM($J175:R175) -> 78800 | S187: =$C187*SUM($J175:S175) -> 78800 | T187: =$C187*SUM($J175:T175) -> 78800 | U187: =$C187*SUM($J175:U175) -> 78800 | V187: =$C187*SUM($J175:V175) -> 78800 | W187: =$C187*SUM($J175:W175) -> 78800 | X187: =$C187*SUM($J175:X175) -> 78800 | Y187: =$C187*SUM($J175:Y175) -> 78800 | Z187: =$C187*SUM($J175:Z175) -> 78800 | AA187: =$C187*SUM($J175:AA175) -> 78800 | AB187: =$C187*SUM($J175:AB175) -> 78800 | AC187: =$C187*SUM($J175:AC175) -> 78800 | AD187: =$C187*SUM($J175:AD175) -> 78800
B188: Cyfanswm cost cynnal a chadw | I188: £ | K188: =SUM(K185:K187) -> 385700 | L188: =SUM(L185:L187) -> 403300 | M188: 418300 | N188: 433900 | O188: 448900 | P188: 449500 | Q188: 449500 | R188: 449500 | S188: 449500 | T188: 449500 | U188: 449500 | V188: 449500 | W188: 449500 | X188: 449500 | Y188: 449500 | Z188: 449500 | AA188: 449500 | AB188: 449500 | AC188: 449500 | AD188: 449500
B190: Crynodeb Llif Arian
B191: Refeniw | J191: =J134 -> 0 | K191: =K134 -> 192000 | L191: 405200 | M191: 597200 | N191: 794400 | O191: 986400 | P191: 991600 | Q191: 991600 | R191: 991600 | S191: 991600 | T191: 991600 | U191: 991600 | V191: 991600 | W191: 991600 | X191: 991600 | Y191: 991600 | Z191: 991600 | AA191: 991600 | AB191: 991600 | AC191: 991600 | AD191: 991600
B192: Costau ynni | J192: =-J106-J110 -> 0 | K192: =-K106-K110 -> -53928 | L192: -115560 | M192: -158097.6 | N192: -188373.6 | O192: -217605.6 | P192: -218649.6 | Q192: -218649.6 | R192: -218649.6 | S192: -218649.6 | T192: -218649.6 | U192: -218649.6 | V192: -218649.6 | W192: -218649.6 | X192: -218649.6 | Y192: -218649.6 | Z192: -218649.6 | AA192: -218649.6 | AB192: -218649.6 | AC192: -218649.6 | AD192: -218649.6
B193: Costau cynnal a chadw | J193: =-J188 -> 0 | K193: =-K188 -> -385700 | L193: -403300 | M193: -418300 | N193: -433900 | O193: -448900 | P193: -449500 | Q193: -449500 | R193: -449500 | S193: -449500 | T193: -449500 | U193: -449500 | V193: -449500 | W193: -449500 | X193: -449500 | Y193: -449500 | Z193: -449500 | AA193: -449500 | AB193: -449500 | AC193: -449500 | AD193: -449500
B194: Costau cyfalaf | J194: =-J179 -> -6535000 | K194: =-K179 -> -1500000 | L194: -1760000 | M194: -1500000 | N194: -1560000 | O194: -1500000 | P194: -60000 | Q194: 0 | R194: 0 | S194: 0 | T194: 0 | U194: 0 | V194: 0 | W194: 0 | X194: 0 | Y194: 0 | Z194: 0 | AA194: 0 | AB194: 0 | AC194: 0 | AD194: 0
B195: Ffioedd Cysylltu | J195: =J147 -> 0 | K195: =K147 -> 100000 | L195: 152000 | M195: 100000 | N195: 112000 | O195: 100000 | P195: 12000 | Q195: 0 | R195: 0 | S195: 0 | T195: 0 | U195: 0 | V195: 0 | W195: 0 | X195: 0 | Y195: 0 | Z195: 0 | AA195: 0 | AB195: 0 | AC195: 0 | AD195: 0
B196: Cyfanswm llif arian (cyn cyllid neu dreth) | J196: =SUM(J191:J195) -> -6535000 | K196: =SUM(K191:K195) -> -1647628 | L196: -1721660 | M196: -1379197.6 | N196: -1275873.6 | O196: -1080105.6 | P196: 275450.4 | Q196: 323450.4 | R196: 323450.4 | S196: 323450.4 | T196: 323450.4 | U196: 323450.4 | V196: 323450.4 | W196: 323450.4 | X196: 323450.4 | Y196: 323450.4 | Z196: 323450.4 | AA196: 323450.4 | AB196: 323450.4 | AC196: 323450.4 | AD196: 323450.4

Sheet Astudiaethau Achos
B1: A Review of the Performance of Minewater Heating and Cooling Systems David B. Walls, David Banks, Adrian J. Boyce and Neil M. Burnside
B3: Prosiect Dŵr Mwynglawdd | C3: Lleoliad | D3: Blwyddyn gosod | E3: Dyfnder m | F3: Tyllau turio | G3: Llif l/e | H3: Tymh C | I3: kW | J3: Math | K3: Nodiadau
B4: Shettleton Housing Association | C4: Glasgow | D4: 1999 | E4: Bas | F4: 1+1 | G4: 3 | I4: 65 | K4: Allan o ddefnydd oherwydd costau cynnal a chadw
B5: Lumphinnans | C5: Fife | D5: 2000 | E5: 170 | F5: 1+1 | G5: 3 | K5: Allan o ddefnydd oherwydd materion cynnal a chadw
B6: Markham | C6: Bolsover | E6: Dwfn | F6: 1 | I6: 20 | K6: Cost uchel pwmpio o amgylch y twll turio
B7: Caphouse | C7: Wakefield | I7: 10 | J7: Ymchwil | K7: Allan o ddefnydd: ymchwil yn unig
B8: Dawdon | C8: Sir Durham | D8: 2011 | G8: 1 | I8: 12 | J8: Peilot | K8: Gweithredol
B9: Dawdon | C9: Sir Durham | D9: 2025 | G9: 150 | H9: 20 | I9: 6000 | J9: Cysyniad | K9: I gyflenwi Seaham Garden Village
B10: Abbotsford Road | C10: Gateshead | E10: 120 | F10: 3+3 | G10: 100 | I10: 2400 | J10: Fel y Cynlluniwyd
B11: Abbotsford Road | C11: Gateshead | E11: 120 | F11: 1+3 | G11: 30 | H11: 11 | J11: Perfformiad gwirioneddol | K11: Gweithredol, ond cynhyrchiant isel
B12: Nest Road | C12: Gateshead | E12: 130-280 | F12: 1+1+2wedi methu | G12: 60 | I12: 1200 | K12: Gweithredol
B13: Crynant | C13: Gorllewin Morgannwg | E13: 65 | G13: 2 | H13: 12 | I13: 35 | K13: Allan o ddefnydd oherwydd materion cynnal a chadw
B14: Egremont | C14: Cumbria | E14: 250 | F14: 1 | G14: 50 | I14: 100+ | J14: Treial | K14: Potensial am dros 1MW o wres, ond dim galw am wres yn y lleoliad
B15: Folldal | C15: Norwy | E15: 600 | F15: 1 | I15: 18 | K15: Ers hynny mae wedi'i ddisodli gan bwmp gwres Awyr-Aer
B16: Kongsberg | C16: Norwy | E16: 250 | F16: 1 | I16: 12 | K16: Gweithredol
B17: Osinnikovskaya | C17: Rwsia | I17: 130 | K17: Gweithredol
B18: Novoshakhtinsk | C18: Rwsia | E18: 390 | F18: 1 | G18: 28 | H18: 23 | I18: =384*2 -> 768 | K18: Gweithredol
B19: Mieres | C19: Sbaen | E19: 360 | G19: 100 | H19: 23 | I19: 3900 | K19: Gweithredol
B20: Heerlen | C20: Yr Iseldiroedd | D20: 2005 | E20: 700 | F20: 4+1 | H20: 28 | K20: Gweithredol
B21: Bytom | C21: Gwlad Pwyl | D21: 2020 | G21: 1 allan o 50 | H21: 28 | I21: 9 | J21: Peilot | K21: Gweithredol
B22: Czeladz | C22: Gwlad Pwyl | D22: 2011 | E22: 210 | F22: 1 | G22: 6 allan o 400 | H22: 15 | I22: =2*59 -> 118 | K22: Gweithredol
B23: Sobieski | C23: Gwlad Pwyl | D23: 2015 | E23: 500 | G23: 18 allan o 350 | H23: 15 | I23: 420 | K23: Gweithredol
B24: Jeremenko | C24: Gweriniaeth Tsiec | D24: 2006 | H24: 29 | I24: 91 | K24: Gweithredol
